bitfinex-derivatives/quotes_ETHF0:USTF0_20250702
["timestamp","ask_amount","ask_price","bid_price","bid_amount"]
[1751472985446,24.48249572,2543.8,2542.6,13.33223661]
[1751472985650,24.48249572,2543.8,2542.7,25.83073661]
[1751472985852,0.78603,2543.3,2542.7,25.83073661]
[1751472986254,0.78619,2542.8,2542.3,2.0939]
[1751472986553,2.127,2543.2,2541.6,11.07973661]
[1751472986748,2.127,2542.7,2542.0,0.78642]
[1751472986954,0.78626,2542.6,2542.1,2.183]
[1751472987151,0.78632,2542.4,2542.1,2.183]
[1751472987347,26.60949572,2542.7,2541.9,14.749]
[1751472987553,0.94592,2542.5,2541.7,2.96949]
[1751472987756,0.94592,2542.4,2541.8,0.78647]
[1751472987954,1.73224,2542.4,2541.7,16.932]
[1751472988149,14.749,2543.3,2541.7,16.932]
[1751472988150,1.96498,2543.5,2542.3,0.78633]
[1751472988355,39.26974,2545.4,2542.1,2.183]
[1751472988356,2.127,2543.1,2542.1,2.183]
[1751472988552,0.7862,2542.8,2542.1,2.183]
[1751472988752,26.60949572,2543.1,2541.2,11.07973661]
[1751472988950,0.94592,2542.1,2541.3,2.183]
[1751472989153,0.94592,2541.9,2541.5,0.78656]
[1751472989350,0.94592,2541.9,2540.8,56.625]
[1751472989351,1.96586,2542.3,2540.8,56.625]
[1751472989555,0.94592,2541.2,2540.7,0.78682]
[1751472989753,2.1137,2541.8,2540.1,11.07973661]
[1751472989754,14.749,2541.7,2540.1,11.07973661]
[1751472990057,0.94592,2541.1,2540.8,0.78678]
[1751472990258,0.94592,2541.2,2540.7,0.78681]
[1751472990458,2.1137,2541.1,2540.7,0.78681]
[1751472990759,2.1137,2541.1,2540.3,1.96738]
[1751472990961,2.2387,2541.8,2540.9,11.07973661]
[1751472991259,2.2387,2542.8,2541.9,1.96613]
[1751472991459,24.48249572,2542.8,2541.7,25.82873661]
[1751472991759,0.94592,2542.6,2541.7,25.82873661]
[1751472991954,0.94592,2542.6,2542.0,1.96607]
[1751472992159,24.48249572,2542.6,2541.7,11.07973661]
[1751472992452,2.0525,2542.5,2541.5,1.96645]
[1751472992657,0.94592,2542.2,2541.9,0.78643]
[1751472992859,2.0525,2542.1,2541.3,4.02289]
[1751472993058,2.0525,2542.1,2542.0,0.78642]
[1751472993359,4.1699,2542.7,2541.6,11.07973661]
[1751472993559,0.94592,2542.6,2542.5,0.78627]
[1751472993856,11.07973661,2546.2,2542.6,5.17155367]
[1751472994062,2.0525,2545.3,2543.1,11.07973661]
[1751472994355,0.08788,2544.1,2544.0,0.78581]
[1751472994558,112.177,2545.2,2544.3,0.7857]
[1751472994559,4.1589,2545.0,2544.3,0.7857]
[1751472994760,4.1589,2545.0,2543.7,1.96475]
[1751472994955,28.64139572,2545.0,2544.0,1.96452]
[1751472995153,28.64139572,2545.0,2543.6,2.0563]
[1751472995154,2.0525,2545.0,2544.3,1.96429]
[1751472995362,2.14038,2545.0,2544.9,0.78553]
[1751472995661,2.1064,2545.8,2545.7,0.78528]
[1751472995861,28.71659572,2545.8,2545.7,0.78528]
[1751472996062,28.80447572,2545.8,2545.7,0.78528]
[1751472996559,2.0487,2546.1,2546.0,0.78519]
[1751472996762,56.615,2548.3,2545.3,2.0486]
[1751472996956,2.1277,2547.8,2546.3,1.96272]
[1751472997152,13.20743661,2547.8,2545.4,5.15644069]
[1751472997353,2.2275,2547.7,2545.7,1.96314]
[1751472997556,0.78477,2547.4,2546.0,1.96298]
[1751472997756,73.4887,2547.3,2545.2,1.96354]
[1751472997962,0.78486,2547.1,2546.4,0.78505]
[1751472998155,2.2197,2547.0,2545.8,1.96307]
[1751472998359,2.2197,2547.0,2546.1,1.9629]
[1751472998558,2.2197,2547.0,2546.9,0.78491]
[1751472998862,26.70219572,2547.0,2546.2,1.96283]
[1751472999162,26.70219572,2547.0,2540.1,487.603]
[1751472999356,2.2275,2547.7,2546.4,14.04002258]
[1751472999556,17.2067,2547.6,2546.5,5.69869771]
[1751472999859,17.2067,2547.6,2546.7,2.96028597]
[1751473000064,43.65096572,2547.6,2546.8,1.57043771]
[1751473000260,11.07973661,2547.3,2545.7,5.18050045]
[1751473000468,2.2197,2547.2,2545.7,5.18050045]
[1751473000663,17.2121,2547.1,2545.6,11.07973661]
[1751473000959,2.2197,2547.0,2546.0,11.07973661]
[1751473001260,17.2027,2547.0,2545.4,13.04317661]
[1751473001463,32.66900458,2547.0,2545.6,2.1515]
[1751473001760,33.45390458,2547.0,2546.4,0.78505]
[1751473001970,17.68600458,2547.0,2546.2,1.96281]
[1751473002260,353.848,2550.1,2546.3,5.04842682]
[1751473002566,13.33313661,2548.6,2546.5,11.07973661]
[1751473002756,110.49313661,2548.5,2546.7,1.96242]
[1751473003063,0.78465,2547.8,2546.7,1.96242]
[1751473003259,17.2364,2547.7,2546.6,2.1515]
[1751473003460,2.2534,2547.7,2546.8,11.07973661]
[1751473003654,16.87823458,2547.7,2547.3,0.78478]
[1751473003964,2.2534,2547.7,2546.9,2.1515]
[1751473004157,14.62483458,2547.7,2546.9,2.1515]
[1751473004354,58.6887,2548.3,2547.3,0.78477]
[1751473004554,14.978,2548.2,2547.1,0.78485]
[1751473004860,2.1337,2548.1,2546.6,2.2373]
[1751473005059,0.78469,2547.7,2546.6,2.2373]
[1751473005263,0.78474,2547.5,2546.9,0.78488]
[1751473005466,2.1337,2547.4,2546.6,2.2373]
[1751473005763,0.78479,2547.3,2546.9,0.7849]
[1751473006065,2.1337,2547.2,2546.1,2.2389]
[1751473006262,14.62483458,2547.4,2546.7,11.07973661]
[1751473006457,0.7848,2547.3,2547.0,0.78487]
[1751473006659,14.62483458,2548.0,2547.1,11.07973661]
[1751473006963,0.78479,2547.3,2547.1,5.14597841]
[1751473007260,1.96159,2547.8,2546.8,11.07973661]
[1751473007261,14.975,2547.8,2546.8,11.07973661]
[1751473007464,0.78471,2547.6,2546.9,2.217]
[1751473007665,2.1111,2547.7,2547.4,0.78474]
[1751473007861,2.1111,2547.5,2546.9,4.17923]
[1751473008161,2.1111,2547.5,2546.4,11.07973661]
[1751473008365,0.78482,2547.2,2547.0,0.78487]
[1751473008558,14.62483458,2547.2,2546.4,20.28012324]
[1751473008759,2.89596,2547.1,2546.9,0.78491]
[1751473009155,2.89596,2547.1,2546.2,1.96282]
[1751473009156,16.73593458,2547.1,2546.1,2.2389]
[1751473009358,16.73593458,2547.1,2546.2,2.217]
[1751473009565,16.73593458,2547.1,2546.6,0.78499]
[1751473009756,16.73593458,2547.1,2546.9,0.78489]
[1751473009957,353.36,2551.0,2546.2,2.217]
[1751473010160,2.1111,2548.7,2547.1,11.07973661]
[1751473010359,84.80313661,2548.6,2546.8,2.0806]
[1751473010559,1.9615,2548.0,2546.3,11.07973661]
[1751473010758,1.9615,2548.0,2546.7,0.78497]
[1751473010759,0.7849,2547.0,2546.7,0.78497]
[1751473011062,0.7849,2547.0,2546.4,2.0806]
[1751473011063,0.78503,2546.6,2546.0,1.96293]
[1751473011263,0.78493,2546.9,2546.0,1.96298]
[1751473011459,2.0927,2546.8,2546.1,2.0806]
[1751473011664,14.62483458,2546.9,2546.1,2.0806]
[1751473011862,14.62483458,2546.9,2546.3,11.07973661]
[1751473012064,14.974,2547.6,2546.9,0.7849]
[1751473012261,0.78497,2546.7,2546.0,1.96293]
[1751473012464,0.78491,2547.0,2546.1,1.3532938]
[1751473012668,2.0927,2546.9,2546.7,0.78496]
[1751473012869,2.0927,2546.9,2546.2,1.96283]
[1751473013169,17.50246458,2546.9,2546.7,0.78496]
[1751473013363,0.78495,2546.8,2546.6,0.78498]
[1751473013571,2.2699,2546.7,2546.6,0.78498]
[1751473013761,2.2699,2546.7,2545.9,11.07973661]
[1751473013960,1.9618,2547.6,2546.3,11.07973661]
[1751473014168,2.2699,2547.5,2546.4,1.96267]
[1751473014368,15.75778,2547.4,2546.6,1.96247]
[1751473014667,2.2699,2547.3,2546.6,1.96252]
[1751473015170,0.78485,2547.2,2546.5,1.96259]
[1751473015366,13.31984458,2547.3,2546.7,11.07973661]
[1751473015664,39.18628,2550.8,2547.3,1.96196]
[1751473015665,2.2699,2548.4,2547.3,1.96196]
[1751473015869,2.2699,2548.4,2548.1,0.78453]
[1751473016066,15.58974458,2548.4,2548.2,0.7845]
[1751473016262,15.58974458,2548.4,2548.3,0.78448]
[1751473016570,15.58974458,2548.4,2548.1,0.78453]
[1751473016763,15.58974458,2548.4,2547.4,4.18316]
[1751473016969,0.78452,2548.2,2547.7,0.78465]
[1751473017167,17.0503,2548.1,2547.7,0.78464]
[1751473017464,2.0783,2548.1,2548.0,0.78457]
[1751473017668,15.39814458,2548.1,2548.0,0.78457]
[1751473019576,71.5,2548.4,2548.3,0.78448]
[1751473019769,69.84984458,2548.4,2548.3,0.78448]
[1751473020671,13.31984458,2548.4,2548.3,0.78448]
[1751473021263,2.1674,2548.7,2548.6,0.78439]
[1751473021264,14.97,2548.7,2548.6,0.78439]
[1751473021464,28.28984458,2548.7,2547.7,2.1491]
[1751473021666,13.31984458,2548.7,2548.0,1.96137]
[1751473021869,13.31984458,2548.7,2548.1,1.96132]
[1751473022166,13.31984458,2548.7,2547.7,1.96164]
[1751473022372,0.78443,2548.5,2547.6,1.96175]
[1751473022672,14.967,2548.4,2547.9,1.96152]
[1751473022873,14.967,2548.4,2548.3,0.78448]
[1751473023071,14.967,2548.4,2548.0,2.2606]
[1751473023072,13.31984458,2548.4,2548.0,2.2606]
[1751473023273,13.31984458,2548.4,2547.9,0.7846]
[1751473023469,0.78456,2548.1,2548.0,1.34069057]
[1751473023670,13.31984458,2548.1,2548.0,1.34069057]
[1751473023969,18.8884,2549.0,2548.0,1.34069057]
[1751473023970,358.75612853,2551.0,2548.0,5.0]
[1751473024270,1.95975,2550.2,2548.2,12.5483232]
[1751473024477,0.7841,2549.6,2548.1,2.2606]
[1751473024673,75.48869,2549.5,2548.3,1.96118]
[1751473024971,86.56842661,2549.5,2548.3,1.9612]
[1751473025173,73.5284,2549.5,2548.3,1.9612]
[1751473025368,0.78424,2549.1,2548.7,0.78435]
[1751473025673,0.78431,2548.9,2548.6,2.25295659]
[1751473025867,2.1104,2548.8,2548.3,1.46858659]
[1751473026174,15.75038,2548.7,2548.4,2.25303659]
[1751473026368,2.1104,2548.6,2548.5,0.90701659]
[1751473026766,14.966,2549.1,2548.6,1.96098]
[1751473026966,47.299,2549.4,2548.8,1.96082]
[1751473026967,2.1104,2549.4,2548.8,1.96082]
[1751473027272,2.1104,2549.4,2549.3,0.78417]
[1751473027469,2.2065,2549.8,2549.3,0.12259659]
[1751473027671,2.1104,2549.7,2549.6,0.78408]
[1751473027974,57.29087,2550.3,2550.0,0.78394]
[1751473028269,2.1104,2550.1,2549.6,1.96015]
[1751473028570,49.3154,2550.1,2549.7,0.12253441]
[1751473028775,49.3154,2550.1,2549.8,0.12253441]
[1751473028977,0.78396,2550.0,2549.9,0.12254562]
[1751473029172,1.96006,2549.8,2548.5,3.42959659]
[1751473029373,2.1622,2549.7,2548.7,1.9609]
[1751473029576,0.78409,2549.6,2549.3,0.78417]
[1751473029872,16.9872,2549.5,2549.3,0.78416]
[1751473030073,16.9872,2549.5,2549.2,0.7842]
[1751473030269,16.9872,2549.5,2549.2,0.78419]
[1751473030467,3.89372101,2552.2,2549.2,5.0]
[1751473030668,2.1622,2550.5,2550.4,0.78383]
[1751473030874,14.825,2550.9,2549.9,2.0802]
[1751473031071,0.78378,2550.6,2549.9,2.0802]
[1751473031273,64.2902,2550.5,2548.9,1.46858659]
[1751473031571,62.115,2550.4,2549.3,2.0802]
[1751473031778,2.2566,2550.3,2548.8,4.84912]
[1751473031974,58.45479,2550.2,2549.3,0.78417]
[1751473032167,106.0176,2550.1,2549.6,0.78405]
[1751473032368,120.8416,2550.1,2548.7,3.92175]
[1751473032568,58.7516,2550.1,2550.0,0.78396]
[1751473033170,58.7516,2550.1,2549.4,1.96036]
[1751473033376,58.7516,2550.1,2549.1,2.8883]
[1751473033775,61.991,2550.0,2549.7,0.78403]
[1751473033974,59.53554,2550.1,2549.2,1.96052]
[1751473033975,2.2566,2549.9,2549.2,1.96052]
[1751473034168,2.2566,2549.9,2549.3,1.96044]
[1751473034373,2.2566,2549.9,2549.2,2.8883]
[1751473034374,0.78408,2549.6,2548.7,1.9609]
[1751473034675,0.78416,2549.4,2548.6,1.96097]
[1751473034974,3.87969618,2552.3,2549.3,11.07973661]
[1751473035172,2.1971,2551.7,2549.6,11.07973661]
[1751473035374,2.1971,2551.7,2549.7,2.068]
[1751473035375,11.07973661,2551.3,2549.7,2.068]
[1751473035575,11.07973661,2550.1,2548.9,1.46858659]
[1751473035874,20.9581,2551.2,2549.3,0.78417]
[1751473035875,0.78404,2549.8,2549.3,0.78417]
[1751473036073,11.07973661,2549.4,2548.7,1.46858659]
[1751473036269,11.07973661,2549.1,2548.8,1.23648899]
[1751473036476,0.78433,2548.8,2547.8,2.068]
[1751473036672,69.76383661,2548.7,2547.9,1.46858659]
[1751473036974,69.76383661,2548.7,2547.7,5.10165016]
[1751473036975,11.86423661,2548.3,2547.8,1.46858659]
[1751473037172,2.1971,2548.2,2548.1,0.78454]
[1751473037375,2.1971,2548.2,2547.6,1.46858659]
[1751473037674,56.487,2548.7,2547.6,1.46858659]
[1751473037675,14.822,2548.3,2548.2,0.78449]
[1751473037870,14.822,2548.3,2547.8,1.9616]
[1751473038074,14.822,2548.3,2548.2,0.78451]
[1751473038272,14.822,2548.4,2548.3,0.78446]
[1751473038471,14.822,2548.4,2547.8,2.8883]
[1751473038671,2.2018,2548.3,2547.8,2.8883]
[1751473038978,14.822,2548.2,2548.1,0.78453]
[1751473039183,2.2018,2548.3,2548.1,0.78453]
[1751473039375,14.822,2548.2,2547.8,1.46858659]
[1751473039577,2.2018,2548.1,2547.8,1.46858659]
[1751473039870,2.98634,2548.1,2547.8,1.46858659]
[1751473040072,11.07973661,2548.0,2547.6,2.21335016]
[1751473040274,11.07973661,2548.0,2547.5,2.21335016]
[1751473040275,2.2018,2547.9,2547.5,2.21335016]
[1751473040478,2.1974,2548.0,2547.7,0.78467]
[1751473040479,14.823,2547.8,2547.7,0.78467]
[1751473040875,67.56673661,2548.7,2547.7,0.78467]
[1751473040876,0.43367183,2549.4,2547.7,5.0]
[1751473041174,0.43367183,2549.4,2548.4,2.21723436]
[1751473041175,0.78423,2549.2,2548.4,2.21723436]
[1751473041379,11.07973661,2548.9,2547.7,5.10553436]
[1751473041570,11.07973661,2548.1,2547.7,2.21723436]
[1751473041784,40.8,2549.1,2547.7,2.21723436]
[1751473041785,60.84,2548.0,2547.7,2.21723436]
[1751473041971,56.494,2548.2,2547.7,5.10553436]
[1751473042180,14.823,2548.2,2548.1,0.78454]
[1751473042973,19.823,2548.2,2547.3,1.10924874]
[1751473043178,2.93316,2548.1,2547.6,0.78468]
[1751473043378,2.93315,2548.1,2547.3,2.8883]
[1751473043577,2.93315,2548.1,2547.6,0.78468]
[1751473043771,2.1486,2548.1,2547.5,1.10924874]
[1751473043977,2.1486,2548.1,2547.8,1.10924874]
[1751473044176,62.274,2548.0,2547.8,1.10924874]
[1751473044372,2.1486,2548.1,2548.0,0.78457]
[1751473044575,64.3516,2548.1,2548.0,1.10924874]
[1751473044776,64.3286,2548.1,2548.0,1.89381874]
[1751473044978,64.3286,2548.1,2547.9,0.78459]
[1751473045190,56.494,2548.5,2547.5,3.99754874]
[1751473045380,62.126,2548.2,2547.5,2.8883]
[1751473045677,2.2162,2548.4,2547.5,2.8883]
[1751473045678,62.105,2548.1,2547.8,0.78461]
[1751473045881,2.2162,2548.0,2547.9,0.7846]
[1751473046077,2.2162,2548.0,2547.7,1.10924874]
[1751473046279,0.78461,2547.9,2547.7,1.10924874]
[1751473046481,2.2162,2547.8,2547.6,1.10924874]
[1751473046984,2.2162,2547.8,2547.6,1.89392874]
[1751473047179,8.00084,2547.8,2547.7,1.10924874]
[1751473047381,0.78467,2547.7,2547.6,1.10924874]
[1751473047575,0.7847,2547.6,2547.5,1.10924874]
[1751473047780,0.78473,2547.5,2547.4,1.10924874]
[1751473047979,0.78479,2547.3,2547.2,1.10924874]
[1751473048282,0.78479,2547.3,2547.1,2.95631248]
[1751473048283,0.78482,2547.2,2547.1,2.95631248]
[1751473048483,2.97542,2547.2,2547.1,1.17685601]
[1751473048679,7.97542,2547.2,2546.9,2.95631248]
[1751473048884,18.27033661,2547.2,2547.0,2.22625077]
[1751473049184,1.96214,2547.1,2546.1,7.40071493]
[1751473049379,1.96229,2546.9,2546.0,0.78517]
[1751473049581,4.15297,2546.8,2545.6,2.2556]
[1751473049780,0.78505,2546.5,2546.1,0.78514]
[1751473049981,105.5907,2546.4,2545.7,1.96321]
[1751473050179,14.828,2546.3,2546.1,0.78514]
[1751473050379,14.828,2546.3,2545.7,2.8883]
[1751473050579,56.509,2546.4,2545.8,1.96313]
[1751473050781,11.07973661,2547.8,2546.7,0.78497]
[1751473051087,2.0907,2547.1,2546.4,1.96262]
[1751473051287,0.7849,2547.0,2546.6,0.78499]
[1751473051482,47.70293,2546.9,2546.4,0.78505]
[1751473051781,14.828,2546.8,2546.0,2.2511]
[1751473051986,63.7817,2546.7,2546.6,0.78501]
[1751473052287,61.669,2546.7,2546.0,7.10235]
[1751473052488,0.78487,2547.1,2546.2,1.96283]
[1751473052679,62.46089,2547.0,2546.6,0.78499]
[1751473052883,14.829,2547.0,2546.6,0.78498]
[1751473053186,61.638,2546.9,2546.6,0.78498]
[1751473053379,61.638,2546.9,2545.9,1.96304]
[1751473053582,3.00336,2546.8,2546.4,0.78506]
[1751473054288,2.2184,2546.8,2546.4,0.78507]
[1751473054482,2.2184,2546.8,2546.4,2.8883]
[1751473054684,61.638,2546.9,2546.4,3.67335]
[1751473054885,61.49,2546.8,2546.4,2.8883]
[1751473055090,61.49,2546.8,2546.4,3.67336]
[1751473055287,61.49,2546.8,2546.6,0.78499]
[1751473055488,3.00326,2547.1,2546.7,0.78498]
[1751473055489,2.2184,2547.1,2546.7,0.78498]
[1751473055687,62.2549,2547.0,2546.6,0.78498]
[1751473055890,0.78499,2546.7,2546.3,0.78508]
[1751473056087,46.593,2546.6,2545.9,2.0643]
[1751473056282,2.0929,2546.6,2545.5,11.07973661]
[1751473056488,0.78505,2546.5,2545.8,1.96308]
[1751473056687,2.0929,2546.6,2546.0,0.78517]
[1751473056987,61.105,2546.5,2546.0,0.78517]
[1751473057194,61.105,2546.5,2546.0,2.8883]
[1751473057488,61.105,2546.5,2546.1,5.2138066]
[1751473057793,1.9624,2546.8,2546.1,0.78514]
[1751473057993,0.78501,2546.6,2546.1,2.8883]
[1751473058193,0.78507,2546.4,2546.0,0.78517]
[1751473058396,2.0929,2546.5,2546.1,0.78515]
[1751473058584,0.78517,2546.1,2545.8,4.9526]
[1751473058785,60.984,2546.4,2545.8,2.8883]
[1751473058989,2.0929,2546.3,2545.8,2.8883]
[1751473059392,0.78516,2546.2,2545.8,2.8883]
[1751473059697,0.78517,2546.1,2545.8,2.8883]
[1751473059890,2.0929,2546.3,2545.8,2.8883]
[1751473060089,60.942,2546.2,2545.8,2.8883]
[1751473060297,2.1042,2546.1,2545.8,2.8883]
[1751473060488,0.78513,2546.2,2545.8,3.67353]
[1751473060693,46.3,2546.0,2545.8,2.8883]
[1751473060888,46.283,2545.9,2545.8,2.8883]
[1751473062193,0.78515,2546.2,2545.7,0.78526]
[1751473062397,60.796,2546.1,2545.7,2.8883]
[1751473062598,60.796,2546.1,2545.9,0.78521]
[1751473062898,14.592,2546.9,2546.1,1.96286]
[1751473063097,48.09339,2546.8,2546.0,2.2645]
[1751473063294,91.09718,2546.8,2546.1,0.78515]
[1751473063494,2.2038,2546.8,2546.1,2.8883]
[1751473063797,56.535,2547.2,2546.6,0.785]
[1751473063999,0.78488,2547.0,2546.3,1.96275]
[1751473064293,0.78491,2546.9,2546.5,0.78503]
[1751473064499,56.535,2547.2,2546.3,5.1528]
[1751473064698,56.535,2547.2,2546.4,1.96267]
[1751473064895,60.642,2547.1,2546.5,1.96259]
[1751473065094,60.642,2547.1,2546.7,0.78497]
[1751473065294,60.619,2547.0,2546.6,2.2645]
[1751473065594,1.96255,2546.6,2545.3,5.17200249]
[1751473065794,1.96255,2546.6,2545.3,5.0828]
[1751473065795,0.78526,2545.8,2545.3,5.0828]
[1751473065990,46.073,2545.7,2545.3,2.8883]
[1751473066196,0.78523,2545.9,2545.3,2.8883]
[1751473066401,14.593,2545.7,2545.3,2.8883]
[1751473066699,14.593,2545.7,2545.4,0.78536]
[1751473066900,60.647,2545.6,2545.3,2.8883]
[1751473067100,61.43232,2545.6,2545.1,0.78545]
[1751473067399,61.38536,2545.5,2545.1,2.8883]
[1751473067599,97.336,2546.1,2545.1,2.8883]
[1751473068101,45.974,2546.0,2545.6,0.78531]
[1751473068295,2.1358,2546.4,2545.2,4.21515]
[1751473068495,60.564,2546.3,2545.8,0.78524]
[1751473068691,2.1182,2546.5,2546.0,0.78517]
[1751473068891,45.914,2546.4,2546.0,2.8883]
[1751473069197,45.914,2546.4,2546.0,3.67348]
[1751473069497,0.78495,2546.8,2546.0,2.8883]
[1751473069698,45.89,2546.9,2546.1,2.1155]
[1751473069995,4.27999,2546.8,2546.0,2.8883]
[1751473070198,60.453,2546.7,2546.0,2.8883]
[1751473070502,0.78511,2546.3,2546.0,2.8883]
[1751473070698,45.858,2546.2,2546.0,2.8883]
[1751473071701,46.64314,2546.2,2546.0,2.8883]
[1751473071896,45.858,2546.2,2546.0,2.8883]
[1751473072195,14.352,2546.9,2546.0,5.0]
[1751473072397,0.78501,2546.6,2546.1,2.1433]
[1751473072601,0.78501,2546.6,2546.1,2.92845]
[1751473072902,45.71,2546.5,2546.1,5.0316]
[1751473073100,45.71,2546.5,2546.2,2.1433]
[1751473073299,45.71,2546.5,2545.7,2.1062]
[1751473073600,2.1767,2547.1,2545.8,4.1064]
[1751473073899,2.1767,2547.1,2545.9,0.78519]
[1751473073900,1.96236,2546.8,2545.9,0.78519]
[1751473074100,2.963,2546.7,2546.2,0.78513]
[1751473074300,2.178,2546.7,2546.2,2.8883]
[1751473074500,60.022,2547.0,2546.2,2.8883]
[1751473074706,14.352,2547.1,2547.0,0.78488]
[1751473075099,14.352,2547.1,2547.0,3.67318]
[1751473075303,59.954,2547.1,2547.0,2.8883]
[1751473075604,59.954,2547.1,2547.0,0.78488]
[1751473075797,59.954,2547.1,2546.4,4.21187]
[1751473076003,59.954,2547.1,2546.6,1.96252]
[1751473076205,59.954,2547.1,2547.0,0.78488]
[1751473076406,59.954,2547.1,2545.7,2.1062]
[1751473076606,62.1391,2547.0,2546.2,1.96283]
[1751473076807,0.78496,2546.8,2546.4,0.78506]
[1751473077002,45.611,2546.7,2546.4,2.8883]
[1751473077203,0.78508,2546.4,2545.7,2.1062]
[1751473077408,45.611,2546.7,2545.8,2.2419]
[1751473077409,0.78506,2546.5,2545.8,2.2419]
[1751473077609,0.78506,2546.5,2546.0,0.78517]
[1751473077809,0.78507,2546.4,2546.0,0.78517]
[1751473078115,42.9671,2546.9,2546.0,2.8883]
[1751473078304,14.35,2546.7,2546.0,3.67347]
[1751473078508,14.35,2546.7,2546.0,2.8883]
[1751473078709,59.898,2546.6,2546.3,0.78508]
[1751473078911,45.539,2546.5,2546.4,0.78506]
[1751473079306,45.539,2546.5,2546.3,0.78508]
[1751473079511,45.526,2546.4,2546.3,0.78508]
[1751473079710,45.526,2546.4,2546.3,2.8883]
[1751473080411,45.526,2546.4,2545.7,2.1062]
[1751473080611,2.2071,2546.3,2545.7,4.37424992]
[1751473080911,4.16988,2546.3,2545.6,1.48594992]
[1751473081108,59.774,2546.2,2545.6,4.37424992]
[1751473081309,45.425,2546.5,2545.7,1.48594992]
[1751473081510,45.425,2546.5,2545.9,1.96306]
[1751473081709,2.2071,2546.8,2546.6,0.78499]
[1751473081910,58.7041,2546.9,2546.6,2.8883]
[1751473082109,42.76165,2547.8,2546.7,1.96241]
[1751473082110,14.351,2547.1,2546.7,1.96241]
[1751473082315,16.5581,2547.3,2546.6,2.8883]
[1751473082515,2.2071,2547.3,2547.1,0.78483]
[1751473082716,45.385,2547.2,2547.0,0.78486]
[1751473083110,45.385,2547.2,2547.1,0.78485]
[1751473083307,0.78485,2547.1,2546.7,0.78496]
[1751473083506,59.676,2547.0,2546.1,2.2648]
[1751473083713,2.2888,2546.9,2545.6,3.73994992]
[1751473083913,2.2888,2546.9,2545.6,1.48594992]
[1751473083914,10.99353099,2546.7,2545.6,1.48594992]
[1751473084106,0.78525,2545.8,2545.7,1.48594992]
[1751473084312,61.68616,2545.8,2545.2,3.72167924]
[1751473084609,0.7854,2545.3,2545.2,3.36792544]
[1751473084808,0.7854,2545.3,2544.0,2.1524]
[1751473084809,106.884,2545.3,2545.0,2.23370085]
[1751473085009,0.78544,2545.2,2545.1,1.48958038]
[1751473085209,0.7855,2545.0,2544.8,2.23370085]
[1751473085409,60.51053,2544.9,2544.8,2.23370085]
[1751473085614,0.78556,2544.8,2544.7,2.23370085]
[1751473086115,59.725,2544.9,2544.7,2.23370085]
[1751473086318,0.78556,2544.8,2544.7,2.23370085]
[1751473086518,64.725,2544.9,2544.3,2.23370085]
[1751473086714,59.725,2544.9,2543.9,2.23370085]
[1751473086914,10.99353099,2545.1,2543.7,2.23370085]
[1751473087219,0.78561,2544.7,2543.7,2.8883]
[1751473087512,40.8,2544.7,2544.5,0.78564]
[1751473087815,40.8,2544.7,2543.5,4.43080085]
[1751473087816,1.96414,2544.5,2543.0,2.23370085]
[1751473088021,1.96414,2544.5,2542.8,2.23370085]
[1751473088022,12.95790099,2544.2,2542.8,2.23370085]
[1751473088216,102.637,2544.1,2542.8,2.23370085]
[1751473088417,56.546,2544.1,2542.8,2.8883]
[1751473088611,10.99353099,2543.8,2542.2,2.23370085]
[1751473088817,10.99353099,2543.4,2542.2,2.23370085]
[1751473089018,10.99353099,2542.6,2541.9,2.23370085]
[1751473089314,60.485,2542.5,2541.9,0.78644]
[1751473089516,60.485,2542.5,2541.6,2.23370085]
[1751473089715,10.99353099,2541.8,2541.5,2.23370085]
[1751473089912,60.476,2541.7,2540.9,2.23370085]
[1751473090219,0.78647,2541.9,2540.9,2.8883]
[1751473090513,51.79353099,2541.8,2540.9,2.8883]
[1751473090719,56.558,2541.7,2540.9,2.8883]
[1751473090918,60.506,2541.6,2540.9,2.8883]
[1751473091114,61.26859,2541.5,2540.7,0.78681]
[1751473091311,60.482,2541.5,2540.1,2.8883]
[1751473091515,56.558,2541.7,2540.5,1.96722]
[1751473091721,14.363,2541.6,2540.1,13.88183099]
[1751473092021,56.558,2541.7,2541.6,0.78655]
[1751473092216,56.558,2541.7,2540.9,1.96686]
[1751473092519,56.558,2541.7,2540.9,2.8883]
[1751473092714,56.558,2541.7,2541.0,2.1858]
[1751473092920,46.052,2541.6,2541.2,0.78666]
[1751473093111,46.052,2541.6,2541.1,0.78669]
[1751473093316,57.04553099,2541.6,2540.5,2.1858]
[1751473093515,10.99353099,2541.6,2540.9,0.78674]
[1751473093716,60.389,2541.5,2541.4,0.78661]
[1751473094116,45.998,2541.5,2541.4,2.8883]
[1751473094522,70.926,2541.7,2541.6,0.78655]
[1751473094715,45.96,2542.0,2541.9,0.78646]
[1751473094920,56.605,2542.5,2541.5,2.1858]
[1751473095226,56.605,2542.5,2542.3,0.78632]
[1751473095413,56.605,2542.5,2541.7,1.9663]
[1751473095414,45.95,2542.4,2541.7,1.9663]
[1751473095618,56.605,2542.5,2542.4,0.7863]
[1751473095823,56.605,2542.5,2541.8,2.3]
[1751473096024,56.605,2542.5,2542.3,0.78631]
[1751473096218,45.891,2542.4,2541.9,1.96614]
[1751473096421,56.605,2542.5,2542.0,4.26607]
[1751473096623,45.854,2542.8,2542.0,10.1883]
[1751473096927,0.78616,2542.9,2542.5,0.78627]
[1751473097115,40.8,2543.4,2542.0,5.1883]
[1751473097424,0.78619,2542.8,2542.0,5.1883]